fUST/lending_fUST_20260528
["ID","MTS","AMOUNT","RATE_DAILY","PERIOD"]
[423219689,1779942640000,-500.0,8.493e-05,2]
[423219686,1779942640000,-1037.22,8.493e-05,2]
[423219691,1779942640000,-500.0,8.493e-05,2]
[423219684,1779942640000,-500.0,8.493e-05,2]
[423219688,1779942640000,-500.0,8.493e-05,2]
[423219690,1779942640000,-500.0,8.493e-05,2]
[423219692,1779942640000,-1013.68,8.493e-05,2]
[423219706,1779942640000,-174.71372,8.493e-05,2]
[423219678,1779942640000,-500.0,8.493e-05,2]
[423219726,1779942640000,-500.0,8.767e-05,2]
[423219670,1779942640000,-500.0,8.493e-05,2]
[423219728,1779942640000,-500.0,8.767e-05,2]
[423219765,1779942640000,-622.82,8.767e-05,2]
[423219764,1779942640000,-500.0,8.767e-05,2]
[423219771,1779942640000,-500.0,8.767e-05,2]
[423219768,1779942640000,-500.0,8.767e-05,2]
[423219770,1779942640000,-500.0,8.767e-05,2]
[423219769,1779942640000,-500.0,8.767e-05,2]
[423219767,1779942640000,-500.0,8.767e-05,2]
[423219784,1779942640000,-500.0,8.929e-05,2]
[423219773,1779942640000,-500.0,8.767e-05,2]
[423219785,1779942640000,-512.7605,9.041e-05,2]
[423219774,1779942640000,-500.0,8.767e-05,2]
[423219778,1779942640000,-500.0,8.929e-05,2]
[423219777,1779942640000,-500.0,8.929e-05,2]
[423219783,1779942640000,-500.0,8.929e-05,2]
[423219782,1779942640000,-500.0,8.929e-05,2]
[423219779,1779942640000,-500.0,8.929e-05,2]
[423219775,1779942640000,-500.0,8.767e-05,2]
[423219781,1779942640000,-500.0,8.929e-05,2]
[423219776,1779942640000,-500.0,8.929e-05,2]
[423219780,1779942640000,-500.0,8.929e-05,2]
[423219786,1779942640000,-500.0,9.041e-05,2]
[423219788,1779942640000,-500.0,9.041e-05,2]
[423219790,1779942640000,-575.98,9.041e-05,2]
[423219789,1779942640000,-500.0,9.041e-05,2]
[423219791,1779942640000,-500.0,9.041e-05,2]
[423219787,1779942640000,-500.0,9.041e-05,2]
[423219793,1779942640000,-500.5934002,9.041e-05,2]
[423219794,1779942640000,-500.0,9.041e-05,2]
[423219727,1779942640000,-500.0,8.767e-05,2]
[423219766,1779942640000,-500.0,8.767e-05,2]
[423219772,1779942640000,-947.52,8.767e-05,2]
[423219792,1779942640000,-500.0,9.041e-05,2]
[423219763,1779942640000,-500.0,8.767e-05,2]
[423219761,1779942640000,-1538.1,8.767e-05,2]
[423219730,1779942640000,-575.98,8.767e-05,2]
[423219733,1779942640000,-500.0,8.767e-05,2]
[423219738,1779942640000,-862.38,8.767e-05,2]
[423219736,1779942640000,-500.0,8.767e-05,2]
[423219740,1779942640000,-589.68,8.767e-05,2]
[423219739,1779942640000,-500.0,8.767e-05,2]
[423219742,1779942640000,-500.0,8.767e-05,2]
[423219734,1779942640000,-500.0,8.767e-05,2]
[423219746,1779942640000,-500.0,8.767e-05,2]
[423219741,1779942640000,-500.0,8.767e-05,2]
[423219743,1779942640000,-500.0,8.767e-05,2]
[423219745,1779942640000,-500.0,8.767e-05,2]
[423219744,1779942640000,-500.0,8.767e-05,2]
[423219729,1779942640000,-500.0,8.767e-05,2]
[423219749,1779942640000,-500.0,8.767e-05,2]
[423219753,1779942640000,-500.0,8.767e-05,2]
[423219762,1779942640000,-500.0,8.767e-05,2]
[423219758,1779942640000,-1013.68,8.767e-05,2]
[423219752,1779942640000,-1037.22,8.767e-05,2]
[423219747,1779942640000,-500.0,8.767e-05,2]
[423219755,1779942640000,-500.0,8.767e-05,2]
[423219751,1779942640000,-1655.62,8.767e-05,2]
[423219756,1779942640000,-500.0,8.767e-05,2]
[423219754,1779942640000,-500.0,8.767e-05,2]
[423219759,1779942640000,-7674.49,8.767e-05,2]
[423219750,1779942640000,-500.0,8.767e-05,2]
[423219757,1779942640000,-500.0,8.767e-05,2]
[423219748,1779942640000,-1544.76,8.767e-05,2]
[423219760,1779942640000,-500.0,8.767e-05,2]
[423219838,1779942641000,-160.0,9.098e-05,2]
[423219841,1779942641000,-160.0,9.098e-05,2]
[423219836,1779942641000,-500.0,9.041e-05,2]
[423219847,1779942641000,-500.0,9.203e-05,2]
[423219831,1779942641000,-500.0,9.041e-05,2]
[423219833,1779942641000,-947.52,9.041e-05,2]
[423219835,1779942641000,-500.0,9.041e-05,2]
[423219830,1779942641000,-500.0,9.041e-05,2]
[423219832,1779942641000,-500.0,9.041e-05,2]
[423219834,1779942641000,-500.0,9.041e-05,2]
[423219837,1779942641000,-365.93610211,9.065e-05,2]
[423219846,1779942641000,-500.0,9.203e-05,2]
[423219848,1779942641000,-500.0,9.203e-05,2]
[423219840,1779942641000,-160.0,9.098e-05,2]
[423219842,1779942641000,-500.0,9.203e-05,2]
[423219844,1779942641000,-500.0,9.203e-05,2]
[423219845,1779942641000,-500.0,9.203e-05,2]
[423219839,1779942641000,-767.06633829,9.098e-05,2]
[423219851,1779942641000,-829.06107048,9.21e-05,2]
[423219850,1779942641000,-500.0,9.203e-05,2]
[423219853,1779942641000,-500.0,9.243e-05,2]
[423219852,1779942641000,-720.0,9.218e-05,2]
[423219849,1779942641000,-500.0,9.203e-05,2]
[423219859,1779942641000,-500.0,9.315e-05,2]
[423219829,1779942641000,-500.0,9.041e-05,2]
[423219856,1779942641000,-500.0,9.315e-05,2]
[423219843,1779942641000,-500.0,9.203e-05,2]
[423219827,1779942641000,-500.0,9.041e-05,2]
[423219806,1779942641000,-453.68814157,9.041e-05,2]
[423219816,1779942641000,-500.0,9.041e-05,2]
[423219854,1779942641000,-271.672,9.315e-05,2]
[423219796,1779942641000,-862.38,9.041e-05,2]
[423219797,1779942641000,-500.0,9.041e-05,2]
[423219798,1779942641000,-589.68,9.041e-05,2]
[423219795,1779942641000,-500.0,9.041e-05,2]
[423219800,1779942641000,-500.0,9.041e-05,2]
[423219811,1779942641000,-1655.62,9.041e-05,2]
[423219810,1779942641000,-500.0,9.041e-05,2]
[423219799,1779942641000,-500.0,9.041e-05,2]
[423219814,1779942641000,-500.0,9.041e-05,2]
[423219813,1779942641000,-500.0,9.041e-05,2]
[423219812,1779942641000,-1037.22,9.041e-05,2]
[423219801,1779942641000,-500.0,9.041e-05,2]
[423219828,1779942641000,-500.0,9.041e-05,2]
[423219802,1779942641000,-500.0,9.041e-05,2]
[423219804,1779942641000,-500.0,9.041e-05,2]
[423219809,1779942641000,-500.0,9.041e-05,2]
[423219808,1779942641000,-1544.76,9.041e-05,2]
[423219815,1779942641000,-500.0,9.041e-05,2]
[423219817,1779942641000,-500.0,9.041e-05,2]
[423219819,1779942641000,-7674.49,9.041e-05,2]
[423219818,1779942641000,-1013.68,9.041e-05,2]
[423219820,1779942641000,-500.0,9.041e-05,2]
[423219821,1779942641000,-1538.1,9.041e-05,2]
[423219823,1779942641000,-500.0,9.041e-05,2]
[423219824,1779942641000,-500.0,9.041e-05,2]
[423219826,1779942641000,-622.82,9.041e-05,2]
[423219825,1779942641000,-500.0,9.041e-05,2]
[423219803,1779942641000,-500.0,9.041e-05,2]
[423219858,1779942641000,-500.0,9.315e-05,2]
[423219872,1779942641000,-500.0,9.315e-05,2]
[423219860,1779942641000,-575.98,9.315e-05,2]
[423219892,1779942641000,-500.0,9.315e-05,2]
[423219895,1779942641000,-500.0,9.315e-05,2]
[423219897,1779942641000,-500.0,9.315e-05,2]
[423219898,1779942641000,-947.52,9.315e-05,2]
[423219896,1779942641000,-500.0,9.315e-05,2]
[423219893,1779942641000,-443.733909,9.315e-05,2]
[423219894,1779942641000,-500.0,9.315e-05,2]
[423219900,1779942641000,-500.0,9.315e-05,2]
[423219901,1779942641000,-500.0,9.477e-05,2]
[423219903,1779942641000,-500.0,9.477e-05,2]
[423219908,1779942641000,-500.0,9.477e-05,2]
[423219905,1779942641000,-500.0,9.477e-05,2]
[423219910,1779942641000,-319.41488665,9.573e-05,2]
[423219912,1779942641000,-500.0,9.589e-05,2]
[423219902,1779942641000,-500.0,9.477e-05,2]
[423219911,1779942641000,-918.9785,9.589e-05,2]
[423219906,1779942641000,-500.0,9.477e-05,2]
[423219904,1779942641000,-500.0,9.477e-05,2]
[423219909,1779942641000,-500.0,9.477e-05,2]
[423219907,1779942641000,-500.0,9.477e-05,2]
[423219914,1779942641000,-500.0,9.589e-05,2]
[423219913,1779942641000,-500.0,9.589e-05,2]
[423219915,1779942641000,-500.0,9.589e-05,2]
[423219919,1779942641000,-500.0,9.589e-05,2]
[423219916,1779942641000,-575.98,9.589e-05,2]
[423219857,1779942641000,-500.0,9.315e-05,2]
[423219917,1779942641000,-500.0,9.589e-05,2]
[423219888,1779942641000,-500.0,9.315e-05,2]
[423219891,1779942641000,-622.82,9.315e-05,2]
[423219918,1779942641000,-500.0,9.589e-05,2]
[423219899,1779942641000,-500.0,9.315e-05,2]
[423219890,1779942641000,-500.0,9.315e-05,2]
[423219862,1779942641000,-500.0,9.315e-05,2]
[423219861,1779942641000,-500.0,9.315e-05,2]
[423219873,1779942641000,-500.0,9.315e-05,2]
[423219863,1779942641000,-500.0,9.315e-05,2]
[423219867,1779942641000,-589.68,9.315e-05,2]
[423219868,1779942641000,-500.0,9.315e-05,2]
[423219866,1779942641000,-500.0,9.315e-05,2]
[423219870,1779942641000,-500.0,9.315e-05,2]
[423219864,1779942641000,-500.0,9.315e-05,2]
[423219869,1779942641000,-500.0,9.315e-05,2]
[423219871,1779942641000,-500.0,9.315e-05,2]
[423219865,1779942641000,-862.38,9.315e-05,2]
[423219874,1779942641000,-1544.76,9.315e-05,2]
[423219855,1779942641000,-918.9785,9.315e-05,2]
[423219877,1779942641000,-1655.62,9.315e-05,2]
[423219876,1779942641000,-500.0,9.315e-05,2]
[423219886,1779942641000,-500.0,9.315e-05,2]
[423219887,1779942641000,-1538.1,9.315e-05,2]
[423219885,1779942641000,-7674.49,9.315e-05,2]
[423219881,1779942641000,-500.0,9.315e-05,2]
[423219882,1779942641000,-500.0,9.315e-05,2]
[423219889,1779942641000,-500.0,9.315e-05,2]
[423219880,1779942641000,-500.0,9.315e-05,2]
[423219875,1779942641000,-500.0,9.315e-05,2]
[423219884,1779942641000,-1013.68,9.315e-05,2]
[423219879,1779942641000,-500.0,9.315e-05,2]
[423219878,1779942641000,-1037.22,9.315e-05,2]
[423219883,1779942641000,-500.0,9.315e-05,2]
[423219963,1779942642000,-500.0,9.751e-05,2]
[423219966,1779942642000,-500.0,9.863e-05,2]
[423219964,1779942642000,-829.06107048,9.755e-05,2]
[423219954,1779942642000,-500.0,9.589e-05,2]
[423219947,1779942642000,-622.82,9.589e-05,2]
[423219955,1779942642000,-500.0,9.589e-05,2]
[423219951,1779942642000,-500.0,9.589e-05,2]
[423219953,1779942642000,-947.52,9.589e-05,2]
[423219950,1779942642000,-500.0,9.589e-05,2]
[423219957,1779942642000,-500.0,9.751e-05,2]
[423219965,1779942642000,-918.9785,9.863e-05,2]
[423219948,1779942642000,-500.0,9.589e-05,2]
[423219962,1779942642000,-500.0,9.751e-05,2]
[423219958,1779942642000,-500.0,9.751e-05,2]
[423219960,1779942642000,-500.0,9.751e-05,2]
[423219959,1779942642000,-500.0,9.751e-05,2]
[423219961,1779942642000,-500.0,9.751e-05,2]
[423219967,1779942642000,-500.0,9.863e-05,2]
[423219969,1779942642000,-500.0,9.863e-05,2]
[423219972,1779942642000,-500.0,9.863e-05,2]
[423219971,1779942642000,-500.0,9.863e-05,2]
[423219970,1779942642000,-575.98,9.863e-05,2]
[423219974,1779942642000,-500.0,9.863e-05,2]
[423219973,1779942642000,-500.0,9.863e-05,2]
[423219949,1779942642000,-500.0,9.589e-05,2]
[423219956,1779942642000,-500.0,9.751e-05,2]
[423219952,1779942642000,-500.0,9.589e-05,2]
[423219933,1779942642000,-1655.62,9.589e-05,2]
[423219943,1779942642000,-1538.1,9.589e-05,2]
[423219976,1779942642000,-589.68,9.863e-05,2]
[423219925,1779942642000,-500.0,9.589e-05,2]
[423219924,1779942642000,-500.0,9.589e-05,2]
[423219923,1779942642000,-589.68,9.589e-05,2]
[423219922,1779942642000,-584.06556571,9.589e-05,2]
[423219920,1779942642000,-500.0,9.589e-05,2]
[423219921,1779942642000,-862.38,9.589e-05,2]
[423219926,1779942642000,-500.0,9.589e-05,2]
[423219927,1779942642000,-500.0,9.589e-05,2]
[423219928,1779942642000,-500.0,9.589e-05,2]
[423219932,1779942642000,-500.0,9.589e-05,2]
[423219931,1779942642000,-500.0,9.589e-05,2]
[423219930,1779942642000,-1544.76,9.589e-05,2]
[423219936,1779942642000,-500.0,9.589e-05,2]
[423219929,1779942642000,-500.0,9.589e-05,2]
[423219935,1779942642000,-500.0,9.589e-05,2]
[423219937,1779942642000,-500.0,9.589e-05,2]
[423219939,1779942642000,-500.0,9.589e-05,2]
[423219938,1779942642000,-500.0,9.589e-05,2]
[423219934,1779942642000,-1037.22,9.589e-05,2]
[423219940,1779942642000,-1013.68,9.589e-05,2]
[423219941,1779942642000,-7674.49,9.589e-05,2]
[423219945,1779942642000,-500.0,9.589e-05,2]
[423219944,1779942642000,-500.0,9.589e-05,2]
[423219946,1779942642000,-500.0,9.589e-05,2]
[423219942,1779942642000,-500.0,9.589e-05,2]
[423219975,1779942642000,-862.38,9.863e-05,2]
[423219968,1779942642000,-500.0,9.863e-05,2]
[423219988,1779942642000,-500.0,9.863e-05,2]
[423220009,1779942642000,-5023.24337512,0.0001,2]
[423220003,1779942642000,-500.0,9.863e-05,2]
[423220008,1779942642000,-500.0,9.863e-05,2]
[423220011,1779942642000,-500.0,9.315e-05,2]
[423220013,1779942642000,-57454.01898368,0.0001,2]
[423220014,1779942642000,-3485.16288707,0.0001,2]
[423220015,1779942642000,-151.0,0.0001,2]
[423220012,1779942642000,-700.0,0.0001,2]
[423220017,1779942642000,-151.0,0.0001,2]
[423220018,1779942642000,-151.0,0.0001,2]
[423220016,1779942642000,-151.0,0.0001,2]
[423220026,1779942642000,-151.0,0.0001,2]
[423220027,1779942642000,-151.0,0.0001,2]
[423220028,1779942642000,-151.0,0.0001,2]
[423220029,1779942642000,-151.0,0.0001,2]
[423220025,1779942642000,-151.0,0.0001,2]
[423220020,1779942642000,-151.0,0.0001,2]
[423220024,1779942642000,-151.0,0.0001,2]
[423220022,1779942642000,-151.0,0.0001,2]
[423220021,1779942642000,-151.0,0.0001,2]
[423220023,1779942642000,-151.0,0.0001,2]
[423220031,1779942642000,-151.0,0.0001,2]
[423220030,1779942642000,-151.0,0.0001,2]
[423220032,1779942642000,-151.0,0.0001,2]
[423219978,1779942642000,-500.0,9.863e-05,2]
[423220007,1779942642000,-500.0,9.863e-05,2]
[423220010,1779942642000,-40404.52885429,0.0001,2]
[423220019,1779942642000,-151.0,0.0001,2]
[423220004,1779942642000,-500.0,9.863e-05,2]
[423220006,1779942642000,-947.52,9.863e-05,2]
[423219982,1779942642000,-500.0,9.863e-05,2]
[423219989,1779942642000,-500.0,9.863e-05,2]
[423219981,1779942642000,-500.0,9.863e-05,2]
[423219980,1779942642000,-500.0,9.863e-05,2]
[423219983,1779942642000,-1544.76,9.863e-05,2]
[423220033,1779942642000,-151.0,0.0001,2]
[423219977,1779942642000,-500.0,9.863e-05,2]
[423219984,1779942642000,-500.0,9.863e-05,2]
[423219986,1779942642000,-1655.62,9.863e-05,2]
[423219985,1779942642000,-500.0,9.863e-05,2]
[423219987,1779942642000,-1037.22,9.863e-05,2]
[423219991,1779942642000,-500.0,9.863e-05,2]
[423219979,1779942642000,-500.0,9.863e-05,2]
[423220002,1779942642000,-500.0,9.863e-05,2]
[423220005,1779942642000,-500.0,9.863e-05,2]
[423220001,1779942642000,-500.0,9.863e-05,2]
[423219999,1779942642000,-500.0,9.863e-05,2]
[423220000,1779942642000,-622.82,9.863e-05,2]
[423219998,1779942642000,-500.0,9.863e-05,2]
[423219997,1779942642000,-500.0,9.863e-05,2]
[423219996,1779942642000,-1538.1,9.863e-05,2]
[423219994,1779942642000,-7674.49,9.863e-05,2]
[423219995,1779942642000,-500.0,9.863e-05,2]
[423219992,1779942642000,-500.0,9.863e-05,2]
[423219990,1779942642000,-500.0,9.863e-05,2]
[423219993,1779942642000,-1013.68,9.863e-05,2]
[423220075,1779942643000,-500.0,0.00010136,2]
[423220077,1779942643000,-500.0,0.00010136,2]
[423220076,1779942643000,-1538.1,0.00010136,2]
[423220079,1779942643000,-500.0,0.00010136,2]
[423220074,1779942643000,-7674.49,0.00010136,2]
[423220066,1779942643000,-1655.62,0.00010136,2]
[423220070,1779942643000,-500.0,0.00010136,2]
[423220072,1779942643000,-500.0,0.00010136,2]
[423220064,1779942643000,-500.0,0.00010136,2]
[423220060,1779942643000,-500.0,0.00010136,2]
[423220071,1779942643000,-500.0,0.00010136,2]
[423220073,1779942643000,-1013.68,0.00010136,2]
[423220082,1779942643000,-500.0,0.00010136,2]
[423220087,1779942643000,-947.52,0.00010136,2]
[423220080,1779942643000,-500.0,0.00010136,2]
[423220084,1779942643000,-500.0,0.00010136,2]
[423220094,1779942643000,-500.0,0.00010299,2]
[423220096,1779942643000,-500.0,0.00010299,2]
[423220083,1779942643000,-500.0,0.00010136,2]
[423220088,1779942643000,-500.0,0.00010136,2]
[423220085,1779942643000,-500.0,0.00010136,2]
[423220090,1779942643000,-864.0,0.0001014,2]
[423220092,1779942643000,-829.06107048,0.000102,2]
[423220086,1779942643000,-500.0,0.00010136,2]
[423220091,1779942643000,-5023.24337512,0.000102,2]
[423220089,1779942643000,-500.0,0.00010136,2]
[423220061,1779942643000,-500.0,0.00010136,2]
[423220081,1779942643000,-622.82,0.00010136,2]
[423220063,1779942643000,-1544.76,0.00010136,2]
[423220043,1779942643000,-500.0,0.00010025,2]
[423220065,1779942643000,-500.0,0.00010136,2]
[423220041,1779942643000,-500.0,0.00010025,2]
[423220099,1779942643000,-500.0,0.00010299,2]
[423220042,1779942643000,-500.0,0.00010025,2]
[423220044,1779942643000,-500.0,0.00010025,2]
[423220037,1779942643000,-500.0,0.00010025,2]
[423220039,1779942643000,-500.0,0.00010025,2]
[423220040,1779942643000,-500.0,0.00010025,2]
[423220034,1779942643000,-151.89173294,0.0001,2]
[423220035,1779942643000,-500.0,0.00010025,2]
[423220046,1779942643000,-918.9785,0.00010136,2]
[423220052,1779942643000,-500.0,0.00010136,2]
[423220045,1779942643000,-5023.24337512,0.000101,2]
[423220049,1779942643000,-500.0,0.00010136,2]
[423220048,1779942643000,-500.0,0.00010136,2]
[423220047,1779942643000,-500.0,0.00010136,2]
[423220050,1779942643000,-500.0,0.00010136,2]
[423220055,1779942643000,-500.0,0.00010136,2]
[423220053,1779942643000,-500.0,0.00010136,2]
[423220054,1779942643000,-500.0,0.00010136,2]
[423220051,1779942643000,-575.98,0.00010136,2]
[423220067,1779942643000,-1037.22,0.00010136,2]
[423220057,1779942643000,-500.0,0.00010136,2]
[423220069,1779942643000,-500.0,0.00010136,2]
[423220068,1779942643000,-500.0,0.00010136,2]
[423220056,1779942643000,-589.68,0.00010136,2]
[423220058,1779942643000,-500.0,0.00010136,2]
[423220062,1779942643000,-500.0,0.00010136,2]
[423220059,1779942643000,-500.0,0.00010136,2]
[423220098,1779942643000,-500.0,0.00010299,2]
[423220101,1779942643000,-500.0,0.00010299,2]
[423220102,1779942643000,-500.0,0.00010299,2]
[423220136,1779942643000,-7674.49,0.0001041,2]
[423220138,1779942643000,-1538.1,0.0001041,2]
[423220147,1779942643000,-500.0,0.0001041,2]
[423220146,1779942643000,-500.0,0.0001041,2]
[423220141,1779942643000,-500.0,0.0001041,2]
[423220144,1779942643000,-500.0,0.0001041,2]
[423220142,1779942643000,-622.82,0.0001041,2]
[423220139,1779942643000,-500.0,0.0001041,2]
[423220145,1779942643000,-500.0,0.0001041,2]
[423220135,1779942643000,-1013.68,0.0001041,2]
[423220140,1779942643000,-500.0,0.0001041,2]
[423220143,1779942643000,-500.0,0.0001041,2]
[423220149,1779942643000,-500.0,0.0001041,2]
[423220137,1779942643000,-500.0,0.0001041,2]
[423220148,1779942643000,-947.52,0.0001041,2]
[423220156,1779942643000,-500.0,0.00010573,2]
[423220150,1779942643000,-500.0,0.0001041,2]
[423220152,1779942643000,-5023.24337512,0.000105,2]
[423220153,1779942643000,-500.0,0.00010573,2]
[423220151,1779942643000,-250.0,0.00010411,2]
[423220155,1779942643000,-500.0,0.00010573,2]
[423220157,1779942643000,-500.0,0.00010573,2]
[423220159,1779942643000,-500.0,0.00010573,2]
[423220160,1779942643000,-5023.24337512,0.000106,2]
[423220158,1779942643000,-500.0,0.00010573,2]
[423220161,1779942643000,-429.80432491,0.00010618,2]
[423220163,1779942643000,-500.0,0.00010684,2]
[423220100,1779942643000,-500.0,0.00010299,2]
[423220154,1779942643000,-500.0,0.00010573,2]
[423220134,1779942643000,-500.0,0.0001041,2]
[423220162,1779942643000,-918.9785,0.00010684,2]
[423220127,1779942643000,-500.0,0.0001041,2]
[423220130,1779942643000,-500.0,0.0001041,2]
[423220105,1779942643000,-5023.24337512,0.000104,2]
[423220104,1779942643000,-5023.24337512,0.000103,2]
[423220103,1779942643000,-500.0,0.00010299,2]
[423220106,1779942643000,-918.9785,0.0001041,2]
[423220108,1779942643000,-385.93103718,0.0001041,2]
[423220111,1779942643000,-575.98,0.0001041,2]
[423220110,1779942643000,-500.0,0.0001041,2]
[423220115,1779942643000,-500.0,0.0001041,2]
[423220113,1779942643000,-500.0,0.0001041,2]
[423220109,1779942643000,-500.0,0.0001041,2]
[423220116,1779942643000,-589.68,0.0001041,2]
[423220117,1779942643000,-500.0,0.0001041,2]
[423220119,1779942643000,-500.0,0.0001041,2]
[423220107,1779942643000,-500.0,0.0001041,2]
[423220112,1779942643000,-500.0,0.0001041,2]
[423220131,1779942643000,-500.0,0.0001041,2]
[423220133,1779942643000,-500.0,0.0001041,2]
[423220125,1779942643000,-1544.76,0.0001041,2]
[423220123,1779942643000,-500.0,0.0001041,2]
[423220132,1779942643000,-500.0,0.0001041,2]
[423220128,1779942643000,-1655.62,0.0001041,2]
[423220129,1779942643000,-1037.22,0.0001041,2]
[423220124,1779942643000,-500.0,0.0001041,2]
[423220122,1779942643000,-500.0,0.0001041,2]
[423220121,1779942643000,-500.0,0.0001041,2]
[423220114,1779942643000,-500.0,0.0001041,2]
[423220126,1779942643000,-500.0,0.0001041,2]
[423220206,1779942644000,-5023.24337512,0.000107,2]
[423220214,1779942644000,-574.00595769,0.00010847,2]
[423220205,1779942644000,-500.0,0.00010684,2]
[423220202,1779942644000,-500.0,0.00010684,2]
[423220204,1779942644000,-500.0,0.00010684,2]
[423220194,1779942644000,-500.0,0.00010684,2]
[423220203,1779942644000,-947.52,0.00010684,2]
[423220199,1779942644000,-500.0,0.00010684,2]
[423220195,1779942644000,-500.0,0.00010684,2]
[423220196,1779942644000,-622.82,0.00010684,2]
[423220208,1779942644000,-5023.24337512,0.000108,2]
[423220213,1779942644000,-500.0,0.00010847,2]
[423220207,1779942644000,-795.0,0.000107,2]
[423220216,1779942644000,-347.80276816,0.00010878,2]
[423220212,1779942644000,-500.0,0.00010847,2]
[423220210,1779942644000,-500.0,0.00010847,2]
[423220211,1779942644000,-500.0,0.00010847,2]
[423220215,1779942644000,-500.0,0.00010847,2]
[423220219,1779942644000,-437.28967135,0.00010958,2]
[423220217,1779942644000,-5023.24337512,0.000109,2]
[423220223,1779942644000,-575.98,0.00010958,2]
[423220220,1779942644000,-787.12140843,0.00010958,2]
[423220221,1779942644000,-1399.32694832,0.00010958,2]
[423220222,1779942644000,-500.0,0.00010958,2]
[423220224,1779942644000,-840.3539,0.00010958,2]
[423220218,1779942644000,-500.0,0.00010958,2]
[423220193,1779942644000,-500.0,0.00010684,2]
[423220209,1779942644000,-481.14878997,0.00010847,2]
[423220189,1779942644000,-1013.68,0.00010684,2]
[423220187,1779942644000,-500.0,0.00010684,2]
[423220197,1779942644000,-500.0,0.00010684,2]
[423220227,1779942644000,-1636.17770677,0.00010958,2]
[423220166,1779942644000,-500.0,0.00010684,2]
[423220165,1779942644000,-575.98,0.00010684,2]
[423220168,1779942644000,-500.0,0.00010684,2]
[423220167,1779942644000,-500.0,0.00010684,2]
[423220164,1779942644000,-500.0,0.00010684,2]
[423220173,1779942644000,-500.0,0.00010684,2]
[423220170,1779942644000,-589.68,0.00010684,2]
[423220172,1779942644000,-500.0,0.00010684,2]
[423220171,1779942644000,-500.0,0.00010684,2]
[423220169,1779942644000,-500.0,0.00010684,2]
[423220175,1779942644000,-500.0,0.00010684,2]
[423220182,1779942644000,-1037.22,0.00010684,2]
[423220184,1779942644000,-500.0,0.00010684,2]
[423220181,1779942644000,-1655.62,0.00010684,2]
[423220185,1779942644000,-500.0,0.00010684,2]
[423220186,1779942644000,-500.0,0.00010684,2]
[423220177,1779942644000,-500.0,0.00010684,2]
[423220174,1779942644000,-500.0,0.00010684,2]
[423220178,1779942644000,-1544.76,0.00010684,2]
[423220179,1779942644000,-500.0,0.00010684,2]
[423220180,1779942644000,-500.0,0.00010684,2]
[423220188,1779942644000,-500.0,0.00010684,2]
[423220191,1779942644000,-500.0,0.00010684,2]
[423220190,1779942644000,-7674.49,0.00010684,2]
[423220192,1779942644000,-1538.1,0.00010684,2]
[423220200,1779942644000,-500.0,0.00010684,2]
[423220201,1779942644000,-500.0,0.00010684,2]
[423220225,1779942644000,-511.30553337,0.00010958,2]
[423220239,1779942644000,-1037.22,0.00010958,2]
[423220234,1779942644000,-500.0,0.00010958,2]
[423220254,1779942644000,-77380.212115,0.00011224,2]
[423220262,1779942644000,-500.0,0.00011232,2]
[423220264,1779942644000,-500.0,0.00011232,2]
[423220275,1779942644000,-500.0,0.00011232,2]
[423220274,1779942644000,-7674.49,0.00011232,2]